Cogmind - Beta 14 @@@ ROGUE MODE // 2025.01.03 @ 18:31:30 // Winter2022/Polymind Player: Demo Result: Destroyed by G-47 Trooper with Particle Gun Performance ------------- Evolutions (0) 0 Regions Visited (1) 200 Robots Destroyed (6) 30 Value Destroyed (155) 155 Prototype IDs (0) 0 Alien Tech Used (0) 0 Bonus (970) 970 TOTAL SCORE: 1115 Bonus ------- Polymind Skill 970 Cogmind --------- Core Integrity 0/250 Matter 100/100 Energy 50/50 System Corruption 6% Temperature Cool (9) Movement Core (50) Location -10/Materials Parts ------- > --- POWER (0) -------- (None) > --- PROPULSION (1) --- (None) > --- UTILITY (0) ------ (None) > --- WEAPON (1) ------- Assembled Maul > --- INVENTORY (1) ---- (None) Peak State ------------ > --- POWER ------------ Light Ion Engine > --- PROPULSION ------- Wheel Wheel > --- UTILITY ---------- Improved Terrain Scanner Seismic Detector > --- WEAPON ----------- Mining Laser > --- INVENTORY -------- (None) [Rating: 8] Favorites ----------- Power Light Ion Engine Engine Light Ion Engine Propulsion Wheel Wheel Wheel Hover Unit Assembled Hover Unit Utility Seismic Detector Device Seismic Detector Weapon Mining Laser Special Weapon Mining Laser Impact Weapon Assembled Maul Build | -11 -10 ------- Run | Yrd Mat Slots Evolved . | . . Power . | . . Propulsion . | . . Utility . | . . Weapon . | . . Parts Attached . | . . Power . | . . Engine . | . . Core . | . . Reactor . | . . Propulsion . | . . Treads . | . . Leg . | . . Wheel . | . . Hover . | . . Flight . | . . Utility . | . . Device . | . . Storage . | . . Processor . | . . Hackware . | . . Protection . | . . Artifact . | . . Weapon . | . . Energy Gun . | . . Energy Cannon . | . . Ballistic Gun . | . . Ballistic Cannon . | . . Launcher . | . . Special Weapon . | . . Impact Weapon . | . . Slashing Weapon . | . . Piercing Weapon . | . . Special Melee Weapon . | . . Unidentified Prototypes . | . . Parts Lost 3 | 2 1 Power . | . . Propulsion 1 | . 1 Utility 2 | 2 . Weapon . | . . Highest Loss Streak 1 | 1 1 To Critical Strikes . | . . Average Slot Usage (%) 85 | . 85 Hover 35 | . 35 Impact Weapon 50 | . 50 Peak Build Rating 8 | 8 5 Average Rating 4 | 4 4 On Entrance 2 | . 5 Naked Turns . | . . Heaviest Build 6 | 6 3 Greatest Support 20 | 20 8 Greatest Overweight (x) . | . . Average Overweight (x) . | . . Largest Inventory Capacity 1 | 1 1 Average Capacity . | . 1 Most Carried . | . . Average Carried . | . . Final Capacity 1 | 1 1 Final Carried . | . . Class Distribution -------------------- 100% | Knight Dominant Class ---------------- Knight | -10/Materials Resources | -11 -10 ----------- Run | Yrd Mat Matter Collected 9 | . 9 Remotely . | . . Salvage Created 178 | . 178 Parts 12 | . 12 Haulers Intercepted . | . . Recyclers Shooed 1 | . 1 Parts Field Recycled . | . . Retrieved Matter . | . . Parts Self-Destructed . | . . Prevented . | . . Kills | -11 -10 ------- Run | Yrd Mat Combat Hostiles Destroyed 4 | . 4 Melee 3 | . 3 Classes Destroyed 3 | . 3 Worker 1 | . 1 Builder 1 | . 1 Grunt 4 | . 4 Best Kill Streak 3 | . 3 Combat Bots Only 2 | . 2 Max Kills in Single Turn 1 | . 1 Gunslinging . | . . Exploded . | . . Melee 1 | . 1 Uniques/NPCs Destroyed . | . . Combat | -11 -10 -------- Run | Yrd Mat Hostile Shots Fired 36 | 11 25 Missed 11 | 3 8 Damage Taken 442 | 132 310 Core 258 | 12 246 Absorbed by Shields . | . . Core Remaining (%) 95 | 95 . Volleys Fired 10 | 10 . Largest 1 | 1 . Hottest 100 | 100 . Shots Fired 10 | 10 . Gun . | . . Cannon . | . . Launcher . | . . Special 10 | 10 . Kinetic . | . . Thermal 10 | 10 . Explosive . | . . Electromagnetic . | . . Robot Hit Streak . | . . Robot Miss Streak . | . . Penetration Max . | . . Secondary Targets . | . . Shots Hit Robots 18 | . 18 Core Hits 4 | . 4 Critical Kills . | . . Critical Parts Destroyed . | . . Critical Strikes . | . . Melee Attacks 23 | . 23 Impact 23 | . 23 Slashing . | . . Piercing . | . . Sneak Attacks 3 | . 3 Combat Hostiles . | . . Follow-up Attacks . | . . Damage Inflicted 592 | 1 591 Guns . | . . Cannons . | . . Explosions . | . . Melee 591 | . 591 Ramming 1 | 1 . Kinetic . | . . Thermal . | . . Explosive . | . . Electromagnetic . | . . Impact 591 | . 591 Slashing . | . . Piercing . | . . Highest Corruption 6 | 6 6 Average Corruption 5 | 1 6 Corruption Purged . | . . Corruption Blocked . | . . Effects 5 | 1 4 Message Errors 2 | 1 1 Matter Fused 2 | . 2 Energy Discharges 1 | . 1 Overload Shots . | . . Overflow Damage 70 | . 70 Projectiles . | . . Explosions . | . . Melee 70 | . 70 Knockbacks 4 | . 4 Impact 4 | . 4 Kinetic . | . . Secondary . | . . Self-Inflicted Damage . | . . Shots . | . . Rammed 1 | 1 . Targets Rammed 1 | 1 . Kicked . | . . Crushed . | . . Highest Temperature 210 | 210 . Average Temperature 75 | 75 . Received Heat Transfer 117 | . 117 Siege Activations . | . . Robots Corrupted 2 | . 2 Combat Hostiles 1 | . 1 Parts Fried 2 | . 2 Impact Corruptions 4 | . 4 Robots Melted . | . . Combat Hostiles . | . . Parts Melted . | . . Heat Transferred . | . . Parts Sabotaged . | . . Parts Stolen . | . . Parts Stripped . | . . Power Chain Reactions . | . . Alert | -11 -10 ------- Run | Yrd Mat Peak Influence 90 | . 90 Initial . | . . Average 4 | . 51 Maximum Alert Level . | . . Low Security (%) 100 | 100 100 Level 1 . | . . Level 2 . | . . Level 3 . | . . Level 4 . | . . Level 5 . | . . High Security . | . . Max Security . | . . Squads Dispatched . | . . Investigation . | . . Extermination . | . . Reinforcement . | . . Assault . | . . Garrison . | . . Intercept . | . . Searches Triggered . | . . Construction Impeded . | . . Haulers Reinforced . | . . Active Scanning Responses . | . . Cargo Convoy Interrupts . | . . Stealth | -11 -10 --------- Run | Yrd Mat Distress Signals . | . . Communications Jammed . | . . Distress Signals . | . . Times Spotted 11 | 5 6 Peak Tracking Total 4 | 4 3 Tactical Retreats 2 | 2 . Traps | -11 -10 ------- Run | Yrd Mat Traps Triggered . | . . Indirectly . | . . Trap Hack Attempts . | . . Triggered . | . . Disarmed . | . . Reprogrammed . | . . Reused . | . . Traps Extracted . | . . Installed . | . . Triggered . | . . Machines | -11 -10 ---------- Run | Yrd Mat Machines Disabled . | . . Max in Single Turn . | . . Machines Repaired . | . . Machines Dismantled . | . . Machines Sabotaged . | . . Overloaded Fab Kills . | . . Hacking | -11 -10 --------- Run | Yrd Mat Machines Accessed . | . . Terminals . | . . Fabricators . | . . Repair Stations . | . . Recycling Units . | . . Scanalyzers . | . . Garrison Access . | . . Total Hacks . | . . Successful . | . . Failed . | . . Catastrophic . | . . Database Lockouts . | . . Manual . | . . Terminals . | . . Fabricators . | . . Repair Stations . | . . Recycling Units . | . . Scanalyzers . | . . Garrison Access . | . . Terminal Hacks . | . . Fabricator Hacks . | . . Repair Station Hacks . | . . Recycling Unit Hacks . | . . Scanalyzer . | . . Garrison Access Hacks . | . . Unauthorized Hacks . | . . Terminals . | . . Fabricators . | . . Repair Stations . | . . Recycling Units . | . . Scanalyzers . | . . Garrison Access . | . . Data Cores Recovered . | . . Used . | . . Hacking Detections . | . . Full Trace Events . | . . Feedback Events . | . . Feedback Blocked . | . . Robot Schematics Acquired . | . . Robots Built . | . . Authchips . | . . Time . | . . Total Robot Build Rating . | . . Part Schematics Acquired . | . . Parts Built . | . . Authchips . | . . Time . | . . Total Part Build Rating . | . . Parts Repaired . | . . Time . | . . Parts Recycled . | . . Recycled Matter . | . . Retrieved Matter . | . . Retrieved Components . | . . Parts Scanalyzed . | . . Part Schematics Acquired . | . . Parts Damaged . | . . Bothacking | -11 -10 ------------ Run | Yrd Mat Used RIF Installer . | . . Robots Hacked . | . . Non-combat . | . . Combat . | . . Robot Hacks Applied . | . . Relay Couplers Released . | . . Fabnet Peak Effective % . | . . Robots Rewired . | . . Allies Hacked . | . . Hacks Repelled . | . . Allies | -11 -10 -------- Run | Yrd Mat Total Allies . | . . Largest Group . | . . Highest-Rated Group . | . . Highest-Rated Ally . | . . Total Orders . | . . Ally Attacks . | . . Total Damage . | . . Kills . | . . Allies Corrupted . | . . Allies Melted . | . . Intel | -11 -10 ------- Run | Yrd Mat Robot Analysis Total 2 | 2 . Derelict Logs Recovered . | . . Drone Launches . | . . Drone Recoveries . | . . Exploration | -11 -10 ------------- Run | Yrd Mat Turns Passed 2317 | 2111 206 Spaces Moved 849 | 718 131 Core 64 | 20 44 Treads . | . . Legs . | . . Wheels 695 | 695 . Hover 90 | 3 87 Flight . | . . Fastest Speed 50 | 50 50 Average Speed 75 | 79 56 Slowest Speed 80 | 80 60 Overloaded Moves . | . . Propulsion Burnouts . | . . Robots Hopped . | . . Cave-ins Triggered . | . . Exploration Rate (%) 38 | 52 24 Regions Visited 1 Branch Regions . Pre-discovered Areas . | . . Known Exits Taken . | . . Unknown Exits Taken 1 | 1 . Scrap Searched . | . . Spaces Dug 7 | 7 . Terrain Destroyed 8 | 8 . Melee . | . . Projectile 8 | 8 . AOE . | . . Terrain Rammed . | . . Walls Destroyed . | . . Machines Disabled . | . . Actions | -11 -10 --------- Run | Yrd Mat Total 2448 | 2230 218 Wait 1207 | 1143 64 Move 848 | 717 131 Hop . | . . Pick Up . | . . Fast Attach . | . . Attach . | . . Detach . | . . Swap . | . . Drop . | . . Fire 10 | 10 . Melee 23 | . 23 Ram 1 | 1 . Kick . | . . Crush . | . . Escape Stasis . | . . Rewire 1 | 1 . Trap . | . . Miscellaneous 358 | 358 . Route ------- -11/Scrapyard -10/Materials History --------- Turn | Location | Event 504 | -11/Scrapyard | Discovered new exit (range 12) 1988 | -11/Scrapyard | Assembled infested the area 2112 | -11/Scrapyard | Entered Materials 2263 | -10/Materials | Core integrity fell below 50% 2294 | -10/Materials | Core integrity fell below 20% 2318 | -10/Materials | Destroyed by G-47 Trooper with Particle Gun Last Messages --------------- 02273_ U-05 Engineer system terminally corrupted. 02273_ Wheel fried. 02273_ U-05 Engineer lays Concrete. 02281_ U-05 Engineer builds a Wall. 02288_ K-01 Serf collects debris. 02289_ U-05 Engineer lays Concrete. 02290_ U-05 Engineer builds a Wall. 02292_ K-01 Serf collects debris. 02295_ G-34 Mercenary destroyed. 02295_ U-05 Engineer builds a Wall. 02298_ K-01 Serf collects debris. 02299_ U-05 Engineer lays Concrete. 02303_ K-01 Serf collects debris. 02310_ K-01 Serf cleans the Matter Pump. 02312_ K-01 Serf collects debris. 02313_ K-01 Serf cleans the Matter Pump. 02316_ K-01 Serf collects debris. 02316_ K-01 Serf cleans the Matter Pump. 02317_ G-47 Trooper knocked back. Map ----- +----------------------------------------------------+ | ?????????????????????????????????????????????????? | | ?????????????????????????????????????????????????? | | ?????????????????????????????????????????????????? | | ?????????????????????????????????????????????????? | | ?????????????????????????????????????????????????? | | ?????????????????????????????????????????????????? | | ?????????????????????????????????????????????????? | | ?????????????????????????????????????????????????? | | ?????????????????????????????????????????????????? | | ?????????????????????????????????????????????????? | | ?????????????????????????????????????????????????? | | ?????????????????????????????????????????????????? | | ?????????????????????????????????????????????????? | | ?????????????????????????????????????????????????? | | ?????????????????????????????????????????????????? | | ?????????????????????????????????????????????????? | | ?????????????????????????????????????????????????? | | ?????????????????????????????????????????????????? | | ?????????????????????????????????#???????????????? | | ???????????????????????######### ###?????????????? | | ??????????????????????? #?????????????? | | ???????????????????????? +?????????????? | | ???????????????????????? #?????????????? | | ????????????????###+##### #??????????????? | | ????????????????# # k #??????????????? | | ????????????????# !#au """ #??????????????? | | ????????????????# %g* """ ####+###???????? | | ????????????????# =# k""" ????????? | | ????????????????# # ??????????? | | ????????????????# # ????????????? | | ????????????????# ##### ##????????????? | | ????????????????# ###?# #######???????? | | ???????????????######### ### ## T #???????? | | ???????????????# # ### ## #???????? | | ???????????????## = ## #???????? | | ???????????????# =% ###% ## #???????? | | ???????????????# #?# ## #???????? | | ???????????????# #?# ## ==#???????? | | ???????????????## #?#### ## ==#???????? | | ????????????????# """ #????# ## %=#???????? | | ????????????????## """ # ## ## ==[#######?? | | ?????????????????# """ #] ## ####+## #?? | | ?????????????????# # ## %!% #?? | | ?????????????????# """ # ## #?? | | ?????????????????# """ # !! ## #?? | | ?????????????????# """ # !! #########+## !#?? | | ?????????????????# # #??????????## ##?? | | ?????????????????#?###+####+#+#???????????# #??? | | ?????????????????????? ???????????????????# #??? | | ?????????????????????? ???????????????????# #### | +----------------------------------------------------+ Best States ------------- Heat Dissipation 35 Energy Generation 20 Energy Capacity 100 Matter Stores 100 Matter Capacity 100 Sight Range 16 Terrain Scan Range 16 Terrain Scan Density 10 Evasion (%) 53 Item Schematics ----------------- None Robot Schematics ------------------ None Fabricated ------------ Nothing Alien Tech Used ----------------- None Achievements -------------- None Challenges ------------ None Polymind | -11 -10 ---------- Run | Yrd Mat Hosts 2 | 2 . Combat Hostiles 1 | 1 . Allies . | . . Unique Host Classes 2 | 2 . Average Host Suspicion 25 | 15 91 Unsuspicious Activity 1810 | 1810 . Returns to Shadow . | . . Fuzzy Dispatches . | . . Protomatter Created 8 | . 8 Used 21 | 21 . Decayed . | . . Highest Spend 16 | 16 . Top 5 Hosts by Kills: as-30153 (-11/Scrapyard: 4) Game ------ Seed MasterSmartbombFalx Manual? 0 Play Time 00:06:43 Cumulative 120.9 hours Start 2025.01.03 @ 18:26:12 End 2025.01.03 @ 18:31:30 Sessions 1 Manual Loads 0 Difficulty Rogue Special Mode Winter2022/Polymind Game No. 145 Rogue 145 Adventurer 0 Explorer 0 Win Type - Total 1 Types 1/0/0/0/0/0/0/0/0 Lore% 52 Gallery% 67 Achievement% 53 Wizard Run 0 Options --------- Layout 1 ASCII 0 Keyboard 0 Movement Numpad Keybinds 0 Fullscreen 1 Font 24/Smallcaps Map View 50x35 Zoom Use 0% Tactical HUD 1 Map Filters NONE Filters NONE Steam 1 RUN: bbeadba9-0bdc-4558-bffb-0ba9a4195bec